Cogmind - Beta 13 @@@ ROGUE MODE // 2024.04.17 @ 20:24:01 Player: lucasboxerhead Result: Destroyed by Y-45 Defender with Heavy Assault Rifle Performance ------------- Evolutions (1) 500 Regions Visited (2) 400 Robots Destroyed (23) 115 Value Destroyed (477) 477 Prototype IDs (0) 0 Alien Tech Used (0) 0 Bonus (0) 0 TOTAL SCORE: 1492 Bonus ------- None Cogmind --------- Core Integrity 0/400 Matter 282/300 Energy 67/100 System Corruption 14% Temperature Cool (0) Movement Core (350) Ox6 Location -9/Materials Parts ------- > --- POWER (1) -------- (None) > --- PROPULSION (4) --- (None) > --- UTILITY (2) ------ Large Storage Unit > --- WEAPON (2) ------- (None) > --- INVENTORY (15) --- Ion Engine Heat Sink Huge Storage Unit Sensor Array Signal Interpreter Peak State ------------ > --- POWER ------------ Ion Engine > --- PROPULSION ------- Light Treads Light Treads Light Treads > --- UTILITY ---------- Heat Sink Small Storage Unit > --- WEAPON ----------- Light Assault Rifle Light Cannon > --- INVENTORY -------- Ion Engine Heat Sink Huge Storage Unit Sensor Array Signal Interpreter Light Assault Rifle Grenade Launcher [Rating: 8] Favorites ----------- Power Ion Engine Engine Ion Engine Propulsion Light Treads Treads Light Treads Utility Heat Sink Device Heat Sink Storage Small Storage Unit Weapon Light Assault Rifle Ballistic Gun Light Assault Rifle Ballistic Cannon Light Cannon Launcher Grenade Launcher Build | -11 -10 -9 ------- Run | Yrd Mat Mat Slots Evolved 2 | . . 2 Power . | . . . Propulsion 2 | . . 2 Utility . | . . . Weapon . | . . . Parts Attached 15 | 7 4 4 Power 2 | 2 . . Engine 2 | 2 . . Core . | . . . Reactor . | . . . Propulsion 3 | 2 . 1 Treads 3 | 2 . 1 Leg . | . . . Wheel . | . . . Hover . | . . . Flight . | . . . Utility 5 | 1 3 1 Device 1 | . 1 . Storage 4 | 1 2 1 Processor . | . . . Hackware . | . . . Protection . | . . . Artifact . | . . . Weapon 5 | 2 1 2 Energy Gun . | . . . Energy Cannon . | . . . Ballistic Gun 3 | 2 . 1 Ballistic Cannon 1 | . 1 . Launcher 1 | . . 1 Special Weapon . | . . . Impact Weapon . | . . . Slashing Weapon . | . . . Piercing Weapon . | . . . Special Melee Weapon . | . . . Unidentified Prototypes . | . . . Parts Lost 9 | . . 9 Power 1 | . . 1 Propulsion 3 | . . 3 Utility 1 | . . 1 Weapon 4 | . . 4 Highest Loss Streak 8 | . . 8 To Critical Strikes . | . . . Average Slot Usage (%) 87 | . 96 76 Engine 12 | . 14 9 Treads 27 | . 28 27 Device 9 | . 10 9 Storage 12 | . 14 11 Ballistic Gun 16 | . 20 11 Ballistic Cannon 7 | . 7 6 Naked Turns . | . . . Heaviest Build 30 | 12 15 30 Greatest Support 60 | 40 40 60 Greatest Overweight (x) 6 | 1 . 6 Average Overweight (x) . | . . . Largest Inventory Capacity 25 | 8 25 15 Average Capacity 10 | 7 8 14 Most Carried 8 | 1 8 8 Average Carried 4 | . 4 6 Final Capacity 15 | 8 8 15 Final Carried 8 | . 8 5 Class Distribution -------------------- 100% | Mutant Dominant Class ---------------- Mutant | -10/Materials Mutant | -9/Materials Resources | -11 -10 -9 ----------- Run | Yrd Mat Mat Matter Collected 587 | 178 260 149 Remotely . | . . . Salvage Created 693 | . 306 387 Parts 43 | . 20 23 Haulers Intercepted 3 | . 1 2 Recyclers Shooed 3 | . 1 2 Parts Field Recycled . | . . . Retrieved Matter . | . . . Parts Self-Destructed . | . . . Prevented . | . . . Kills | -11 -10 -9 ------- Run | Yrd Mat Mat Combat Hostiles Destroyed 14 | . 6 8 Guns 7 | . 3 4 Cannons 5 | . 3 2 AOE 2 | . . 2 Classes Destroyed 8 | . 6 2 Worker 3 | . 1 2 Hauler 3 | . 1 2 Recycler 2 | . 1 1 Watcher 1 | . 1 . Swarmer 3 | . 3 . Grunt 9 | . 3 6 Brawler 1 | . . 1 Sentry 1 | . . 1 Best Kill Streak 8 | . 6 8 Combat Bots Only 4 | . 3 4 Max Kills in Single Turn 2 | . 1 2 Gunslinging . | . . . Exploded 1 | . . 1 Melee . | . . . Uniques/NPCs Destroyed . | . . . Combat | -11 -10 -9 -------- Run | Yrd Mat Mat Hostile Shots Fired 131 | . 50 81 Missed 31 | . 16 15 Damage Taken 1504 | . 324 1180 Core 454 | . 44 410 Absorbed by Shields . | . . . Core Remaining (%) 91 | 100 82 . Volleys Fired 77 | . 34 43 Largest 2 | . 2 2 Hottest 55 | . 55 55 Shots Fired 145 | . 68 77 Gun 101 | . 48 53 Cannon 38 | . 20 18 Launcher 6 | . . 6 Special . | . . . Kinetic 139 | . 68 71 Thermal . | . . . Explosive 6 | . . 6 Electromagnetic . | . . . Robot Hit Streak 22 | . 8 22 Robot Miss Streak 7 | . 7 5 Penetration Max . | . . . Secondary Targets 1 | . . 1 Max Gunslinging Chain 1 | . . 1 Shots Hit Robots 97 | . 38 59 Core Hits 48 | . 16 32 Critical Kills 1 | . 1 . Critical Parts Destroyed 1 | . . 1 Critical Strikes 4 | . 1 3 Destroy 2 | . 1 1 Blast 2 | . . 2 Melee Attacks . | . . . Impact . | . . . Slashing . | . . . Piercing . | . . . Sneak Attacks . | . . . Combat Hostiles . | . . . Follow-up Attacks . | . . . Damage Inflicted 1475 | . 384 1091 Guns 556 | . 244 312 Cannons 372 | . 140 232 Explosions 533 | . . 533 Melee . | . . . Ramming 14 | . . 14 Kinetic 928 | . 384 544 Thermal . | . . . Explosive 533 | . . 533 Electromagnetic . | . . . Impact . | . . . Slashing . | . . . Piercing . | . . . Highest Corruption 14 | . . 14 Average Corruption 12 | . . 12 Corruption Purged . | . . . Corruption Blocked . | . . . Effects 2 | . . 2 Matter Fused 1 | . . 1 Energy Discharges 1 | . . 1 Overload Shots . | . . . Overflow Damage 23 | . . 23 Projectiles . | . . . Explosions 23 | . . 23 Melee . | . . . Knockbacks 3 | . 2 1 Impact . | . . . Kinetic 3 | . 2 1 Secondary . | . . . Self-Inflicted Damage 208 | . . 208 Shots 6 | . . 6 Rammed 14 | . . 14 Targets Rammed 14 | . . 14 Kicked . | . . . Crushed . | . . . Highest Temperature 12 | . 12 3 Average Temperature 5 | . 6 2 Received Heat Transfer 435 | . 102 333 Siege Activations . | . . . Robots Corrupted . | . . . Combat Hostiles . | . . . Parts Fried . | . . . Impact Corruptions . | . . . Robots Melted . | . . . Combat Hostiles . | . . . Parts Melted . | . . . Heat Transferred . | . . . Parts Sabotaged . | . . . Parts Stolen . | . . . Parts Stripped . | . . . Power Chain Reactions . | . . . Alert | -11 -10 -9 ------- Run | Yrd Mat Mat Peak Influence 301 | . 221 301 Initial 92 | . . 92 Average 135 | . 118 188 Maximum Alert Level 1 | . 1 1 Low Security (%) 70 | 100 71 61 Level 1 29 | . 28 38 Level 2 . | . . . Level 3 . | . . . Level 4 . | . . . Level 5 . | . . . High Security . | . . . Max Security . | . . . Squads Dispatched 2 | . 2 . Investigation 1 | . 1 . Extermination . | . . . Reinforcement 1 | . 1 . Assault . | . . . Garrison . | . . . Intercept . | . . . Searches Triggered . | . . . Construction Impeded . | . . . Haulers Reinforced . | . . . Active Scanning Responses . | . . . Cargo Convoy Interrupts . | . . . Stealth | -11 -10 -9 --------- Run | Yrd Mat Mat Distress Signals 3 | . 1 2 Communications Jammed . | . . . Distress Signals . | . . . Times Spotted 25 | . 9 16 Peak Tracking Total 6 | . 5 6 Tactical Retreats 1 | . . 1 Traps | -11 -10 -9 ------- Run | Yrd Mat Mat Traps Triggered . | . . . Indirectly . | . . . Trap Hack Attempts . | . . . Triggered . | . . . Disarmed . | . . . Reprogrammed . | . . . Reused . | . . . Traps Extracted . | . . . Installed . | . . . Triggered . | . . . Machines | -11 -10 -9 ---------- Run | Yrd Mat Mat Machines Disabled 1 | . . 1 Max in Single Turn 1 | . . 1 Machines Repaired . | . . . Machines Dismantled . | . . . Machines Sabotaged . | . . . Overloaded Fab Kills . | . . . Hacking | -11 -10 -9 --------- Run | Yrd Mat Mat Machines Accessed 2 | . 2 . Terminals 2 | . 2 . Fabricators . | . . . Repair Stations . | . . . Recycling Units . | . . . Scanalyzers . | . . . Garrison Access . | . . . Total Hacks 5 | . 5 . Successful 3 | . 3 . Failed 2 | . 2 . Catastrophic 1 | . 1 . Database Lockouts . | . . . Manual . | . . . Terminals 5 | . 5 . Fabricators . | . . . Repair Stations . | . . . Recycling Units . | . . . Scanalyzers . | . . . Garrison Access . | . . . Terminal Hacks 3 | . 3 . Hauler Manifests 1 | . 1 . Zone Layout 2 | . 2 . Fabricator Hacks . | . . . Repair Station Hacks . | . . . Recycling Unit Hacks . | . . . Scanalyzer . | . . . Garrison Access Hacks . | . . . Unauthorized Hacks . | . . . Terminals . | . . . Fabricators . | . . . Repair Stations . | . . . Recycling Units . | . . . Scanalyzers . | . . . Garrison Access . | . . . Data Cores Recovered . | . . . Used . | . . . Hacking Detections 2 | . 2 . Full Trace Events 1 | . 1 . Feedback Events . | . . . Feedback Blocked . | . . . Robot Schematics Acquired . | . . . Robots Built . | . . . Authchips . | . . . Time . | . . . Total Robot Build Rating . | . . . Part Schematics Acquired . | . . . Parts Built . | . . . Authchips . | . . . Time . | . . . Total Part Build Rating . | . . . Parts Repaired . | . . . Time . | . . . Parts Recycled . | . . . Recycled Matter . | . . . Retrieved Matter . | . . . Retrieved Components . | . . . Parts Scanalyzed . | . . . Part Schematics Acquired . | . . . Parts Damaged . | . . . Bothacking | -11 -10 -9 ------------ Run | Yrd Mat Mat Used RIF Installer . | . . . Robots Hacked . | . . . Non-combat . | . . . Combat . | . . . Robot Hacks Applied . | . . . Relay Couplers Released . | . . . Fabnet Peak Effective % . | . . . Robots Rewired . | . . . Allies Hacked . | . . . Hacks Repelled . | . . . Allies | -11 -10 -9 -------- Run | Yrd Mat Mat Total Allies . | . . . Largest Group . | . . . Highest-Rated Group . | . . . Highest-Rated Ally . | . . . Total Orders . | . . . Ally Attacks . | . . . Total Damage . | . . . Kills . | . . . Allies Corrupted . | . . . Allies Melted . | . . . Intel | -11 -10 -9 ------- Run | Yrd Mat Mat Robot Analysis Total . | . . . Derelict Logs Recovered . | . . . Drone Launches . | . . . Drone Recoveries . | . . . Exploration | -11 -10 -9 ------------- Run | Yrd Mat Mat Turns Passed 646 | 63 318 265 Spaces Moved 231 | 36 132 63 Core 6 | 5 . 1 Treads 225 | 31 132 62 Legs . | . . . Wheels . | . . . Hover . | . . . Flight . | . . . Fastest Speed 50 | 50 160 160 Average Speed 159 | 148 160 163 Slowest Speed 350 | 160 160 350 Overloaded Moves . | . . . Propulsion Burnouts . | . . . Robots Hopped . | . . . Cave-ins Triggered . | . . . Exploration Rate (%) 15 | 4 22 19 Regions Visited 2 Branch Regions . Pre-discovered Areas . | . . . Known Exits Taken . | . . . Unknown Exits Taken 2 | 1 1 . Scrap Searched . | . . . Spaces Dug . | . . . Terrain Destroyed 16 | . . 16 Melee . | . . . Projectile . | . . . AOE 16 | . . 16 Terrain Rammed . | . . . Walls Destroyed . | . . . Machines Disabled . | . . . Actions | -11 -10 -9 --------- Run | Yrd Mat Mat Total 359 | 43 179 137 Wait 15 | . 3 12 Move 229 | 35 131 63 Hop . | . . . Pick Up 6 | . 6 . Fast Attach 8 | 6 2 . Attach 3 | . . 3 Detach 1 | . 1 . Swap 4 | 1 2 1 Drop 2 | 1 . 1 Fire 77 | . 34 43 Melee . | . . . Ram 8 | . . 8 Kick . | . . . Crush 6 | . . 6 Escape Stasis . | . . . Rewire . | . . . Trap . | . . . Miscellaneous . | . . . Route ------- -11/Scrapyard -10/Materials -9/Materials (discovered 1 exit: [*Min]) History --------- Turn | Location | Event 15 | -11/Scrapyard | Discovered new exit (range 16) 64 | -11/Scrapyard | Entered Materials 212 | -10/Materials | Discovered new exit (range 15) 320 | -10/Materials | Build established: Mutant 382 | -10/Materials | Entered another Materials area 382 | -9/Materials | Evolved 2 slots: Propulsion x2 600 | -9/Materials | System corruption reached 10% 615 | -9/Materials | Core integrity fell below 50% 632 | -9/Materials | Discovered new exit (range 12) 636 | -9/Materials | Core integrity fell below 20% 647 | -9/Materials | Destroyed by Y-45 Defender with Heavy Assault Rifle Last Messages --------------- 00632_ U-05 Engineer builds a Door. 00632_ Slammed into Y-45 Defender. 00632_ Destabilizing: System corrupted (+1). 00632_ EXIT=FOUND 00633_ U-05 Engineer builds a Wall. 00633_ U-05 Engineer lays Concrete. 00636_ Slammed into Y-45 Defender. 00636_ U-05 Engineer builds a Wall. 00637_ The unstable cave ceiling collapses. 00637_ U-05 Engineer builds a Wall. 00638_ K-01 Serf collects debris. 00641_ U-05 Engineer lays Concrete. 00643_ U-05 Engineer builds a Wall. 00643_ Slammed into Y-45 Defender. 00644_ K-01 Serf collects debris. 00644_ U-05 Engineer lays Concrete. 00646_ Slammed into Y-45 Defender. 00646_ U-05 Engineer lays Concrete. 00646_ U-05 Engineer builds a Wall. 00647_ System corrupted: Energy discharge (-33). Map ----- +----------------------------------------------------+ | ?????????????????????????????????????????????????? | | ?????????????????????????????????????????????????? | | ?????????????????????????????????????????????????? | | ?????????????????????????????????????????????????? | | ?????????????????????????????????????????????????? | | ?????????????????????????????????????????????????? | | #????????????????????????????????????????????????? | | #????????????????????????????????????????????????? | | +????????????????????????????????????????????????? | | #????????????????????????????????????????????????? | | #????????????????????????????????????????????????? | | #????????????????????????????? ?????????????????? | | #???????????????????????????? #????????????????? | | #???????????????????????????? #????????????????? | | #???#+#?#+#??????????????????< #???##+??????????? | | #???# #?# #?????????????????? #?? ??????????? | | #???# #?# #????####?????????? #? ?????????? | | #???# #?# #????# ????????? ? "?????????? | | ##### ### #????# ???????? ## T?????????? | | #????# ??????? " ????????? | | * % #????# ??????? ????????? | | ! % % #????# ?????? ???????? | | ####### ###???? ###### ???????? | | ??????# %= #######+# # #u t #??????? | | ??????# * w % k =u a #??????? | | ? """ + =[ =m@ [ a#???????????? | | ??""" # ^ =%* %= Y [ #???????????? | | ? ???# ########/## #???????????? | | ??????# ^""^ ## uu ##+###### #???????????? | | ??????# "T ## " u] #??????????????? | | ??????# "" ## """! #??????????????? | | ??????# ##] S" # """ #??????????????? | | ??????# ## ! !# """"" +??????????????? | | ??????###+######## %!# """"" #??????????????? | | ?????????????????# !!= # """""??#??????????????? | | ?????????????????# !!= # """??????????????????? | | ?????????????????# !== # ????????????????????? | | ?????????????????# [!? ????????????????????? | | ???????????????????? [!!?###????????????????????? | | ????????????????????###%#????????????????????????? | | ??????????????????????##?????????????????????????? | | ?????????????????????????????????????????????????? | | ?????????????????????????????????????????????????? | | ?????????????????????????????????????????????????? | | ?????????????????????????????????????????????????? | | ?????????????????????????????????????????????????? | | ?????????????????????????????????????????????????? | | ?????????????????????????????????????????????????? | | ?????????????????????????????????????????????????? | | ?????????????????????????????????????????????????? | +----------------------------------------------------+ Best States ------------- Heat Dissipation 38 Energy Generation 10 Energy Capacity 250 Matter Stores 300 Matter Capacity 300 Sight Range 16 Terrain Scan Density 10 Evasion (%) 40 Recoil Reduction 3 Item Schematics ----------------- None Robot Schematics ------------------ None Fabricated ------------ Nothing Alien Tech Used ----------------- None Achievements -------------- None Challenges ------------ None Game ------ Seed NeutrinoVisualAnalyzer Manual? 0 Play Time 00:08:22 Cumulative 13.5 hours Start 2024.04.17 @ 20:17:18 End 2024.04.17 @ 20:24:01 Sessions 1 Manual Loads 0 Difficulty Rogue Special Mode None Game No. 45 Rogue 42 Adventurer 3 Explorer 0 Win Type - Total 0 Types 0/0/0/0/0/0/0/0/0 Lore% 11 Gallery% 19 Achievement% 16 Wizard Run 0 Options --------- Layout 1 ASCII 0 Keyboard 1 Movement Numpad Keybinds 0 Fullscreen 2 Font 24/Smallcaps Map View 50x35 Zoom Use 0% Tactical HUD 1 Map Filters NONE Filters NONE Steam 1 RUN: 0d8c9288-585a-4dda-a20b-f6c7e96e5830